2CCN - Level 2 Cost Centre Name,,9CCN - Level 9 Cost Centre Name,9CCC - Level 9 Cost Centre Code,9AN - Level 9 Account Name,9AC - Level 9 Account Code,Date posted,Date of transaction,Merchant Name,Merchant City,Merchant State,Merchant Zip Code,Originating Account Name,Originating Account Number,MCC/SIC Code,MCC Description,Original Amount,Currency,Conversion Rate,Billed Amount,Account Applied To,Debit Credit,Reference Number,Statement Cycle,Account Name
Gloucester City Council,23UE,Museum of Gloucester,MU002,"	Cleaning Services & Materials",1500,09/09/2021,08/09/2021,WILKO RETAIL LIMITED,GLOUCESTER,GBR,GL1 1SL,REDACTED,556*********9934,5399,MISCELLANEOUS GENERAL MERCHANDISE STORES,23.5,Pound Sterling (826),1.000000000,23.5,Corporate,D,05272461252910014223233,02/10/2021,GLOUCESTER CITY COUNCIL
Gloucester City Council,23UE,Shopmobility,SM001,"	General Supplies/Materials",3025,09/09/2021,08/09/2021,ASDA SUPERSTORE,GLOUCESTER,GBR,GL1 1DS,REDACTED,556*********9934,5411,"GROCERY STORES, SUPERMARKETS",11.32,Pound Sterling (826),1.000000000,11.32,Corporate,D,05130861252910064360722,02/10/2021,GLOUCESTER CITY COUNCIL
Gloucester City Council,23UE,Museum of Gloucester,MU002,Catering Provisions,3103,10/09/2021,09/09/2021,MARKS&SPENCER PLC,GLOUCESTER,GBR,GL1 1PH,REDACTED,556*********9934,5411,"GROCERY STORES, SUPERMARKETS",2.3,Pound Sterling (826),1.000000000,2.3,Corporate,D,05130861253910048552807,02/10/2021,GLOUCESTER CITY COUNCIL
Gloucester City Council,23UE,Museum of Gloucester,MU002,"	General Supplies/Materials",3025,10/09/2021,09/09/2021,Keelings Convenience,Gloucester,GBR,GL1 2PG,REDACTED,556*********9934,5411,"GROCERY STORES, SUPERMARKETS",1.49,Pound Sterling (826),1.000000000,1.49,Corporate,D,75433121253136321830399,02/10/2021,GLOUCESTER CITY COUNCIL
Gloucester City Council,23UE,Museum of Gloucester,MU002,"	General Supplies/Materials",3025,13/09/2021,10/09/2021,POST OFFICE COUNTER,GLOUCESTER,,GL1 1AD,REDACTED,556*********9934,9402,POSTAGE STAMPS,0.98,Pound Sterling (826),1.000000000,0.98,Corporate,D,55504431253194221785295,02/10/2021,GLOUCESTER CITY COUNCIL
Gloucester City Council,23UE,Museum of Gloucester,MU002,"	General Supplies/Materials",3025,13/09/2021,10/09/2021,POSTOFFICE SELFSERVICE,GLOUCESTER,,GL1 1AD,REDACTED,556*********9934,9402,POSTAGE STAMPS,8.92,Pound Sterling (826),1.000000000,8.92,Corporate,D,55504431253252150216896,02/10/2021,GLOUCESTER CITY COUNCIL
Gloucester City Council,23UE,Museum of Gloucester,MU002,"	General Supplies/Materials",3025,20/09/2021,18/09/2021,POSTOFFICE SELFSERVICE,GLOUCESTER,,GL1 1AD,REDACTED,556*********9934,9402,POSTAGE STAMPS,1.53,Pound Sterling (826),1.000000000,1.53,Corporate,D,55504431261252107858998,02/10/2021,GLOUCESTER CITY COUNCIL
Gloucester City Council,23UE,Museum of Gloucester,MU002,Catering Provisions,3103,20/09/2021,18/09/2021,ICELAND,GLOUCESTER,GBR,GL1 1SA,REDACTED,556*********9934,5411,"GROCERY STORES, SUPERMARKETS",1.6,Pound Sterling (826),1.000000000,1.6,Corporate,D,05130861262910034344382,02/10/2021,GLOUCESTER CITY COUNCIL
Gloucester City Council,23UE,Museum of Gloucester,MU002,"	External Training Course Fees",0550,20/09/2021,17/09/2021,ECC RAMM ONLINE,EXETER EX4,,EX1 1JW,REDACTED,556*********9934,9399,GOVERNMENT SERVICES NOT ELSEWHERE CLASSIFIED,22.5,Pound Sterling (826),1.000000000,22.5,Corporate,D,55504431262295362060783,02/10/2021,GLOUCESTER CITY COUNCIL
Gloucester City Council,23UE,Museum of Gloucester,MU002,"	General Supplies/Materials",3025,21/09/2021,19/09/2021,SAINSBURYS S/MKTS,GLOUCESTER,,GL1 4JE,REDACTED,556*********9934,5411,"GROCERY STORES, SUPERMARKETS",2.3,Pound Sterling (826),1.000000000,2.3,Corporate,D,85481471263340317465528,02/10/2021,GLOUCESTER CITY COUNCIL
Gloucester City Council,23UE,Museum of Gloucester,MU002,Catering Provisions,3103,27/09/2021,23/09/2021,POUNDLAND LTD 1167,GLOUCESTER,,GL11XH,REDACTED,556*********9934,5310,DISCOUNT STORES,2,Pound Sterling (826),1.000000000,2,Corporate,D,85481471267341413370360,02/10/2021,GLOUCESTER CITY COUNCIL
Gloucester City Council,23UE,Museum of Gloucester,MU002,"	General Supplies/Materials",3025,27/09/2021,24/09/2021,ASDA SUPERSTORE,GLOUCESTER,GBR,GL1 1DS,REDACTED,556*********9934,5411,"GROCERY STORES, SUPERMARKETS",6,Pound Sterling (826),1.000000000,6,Corporate,D,05130861268910077602781,02/10/2021,GLOUCESTER CITY COUNCIL
Gloucester City Council,23UE,Shopmobility,SM001,"	General Supplies/Materials",3025,27/09/2021,24/09/2021,ASDA SUPERSTORE,GLOUCESTER,GBR,GL1 1DS,REDACTED,556*********9934,5411,"GROCERY STORES, SUPERMARKETS",0.89,Pound Sterling (826),1.000000000,0.89,Corporate,D,05130861268910077603284,02/10/2021,GLOUCESTER CITY COUNCIL
Gloucester City Council,23UE,Museum of Gloucester,MU002,Exhibition Costs,3021,27/09/2021,24/09/2021,WH SMITH,GLOUCESTER,GBR,GL1 1NZ,REDACTED,556*********9934,5994,NEWS DEALERS AND NEWSSTANDS,16.99,Pound Sterling (826),1.000000000,16.99,Corporate,D,05130861268910077245771,02/10/2021,GLOUCESTER CITY COUNCIL
Gloucester City Council,23UE,Museum of Gloucester,MU002,Exhibition Costs,3021,27/09/2021,25/09/2021,WILKO RETAIL LIMITED,GLOUCESTER,GBR,GL1 1SL,REDACTED,556*********9934,5399,MISCELLANEOUS GENERAL MERCHANDISE STORES,10,Pound Sterling (826),1.000000000,10,Corporate,D,05272461269910034139592,02/10/2021,GLOUCESTER CITY COUNCIL
Gloucester City Council,23UE,Shopmobility,SM001,"	General Supplies/Materials",3025,29/09/2021,28/09/2021,AMZNMktplace,amazon.co.uk,GBR,EC2A 2FA,REDACTED,556*********9934,5999,MISCELLANEOUS AND RETAIL STORES,58.14,Pound Sterling (826),1.000000000,58.14,Corporate,D,52692011271200779478394,02/10/2021,GLOUCESTER CITY COUNCIL
Gloucester City Council,23UE,Museum of Gloucester,MU002,Catering Provisions,3103,30/09/2021,29/09/2021,AMZNMktplace,amazon.co.uk,GBR,EC2A 2FA,REDACTED,556*********9934,5999,MISCELLANEOUS AND RETAIL STORES,33.96,Pound Sterling (826),1.000000000,33.96,Corporate,D,52692011272200928947090,02/10/2021,GLOUCESTER CITY COUNCIL
Gloucester City Council,23UE,Museum of Gloucester,MU002,"	General Supplies/Materials",3025,30/09/2021,29/09/2021,TESCO STORES 6819,GLOUCESTER,GBR,GL1 1TP,REDACTED,556*********9934,5411,"GROCERY STORES, SUPERMARKETS",10.2,Pound Sterling (826),1.000000000,10.2,Corporate,D,05130861273910012747413,02/10/2021,GLOUCESTER CITY COUNCIL
Gloucester City Council,23UE,Museum of Gloucester,MU002,Exhibition Costs,3021,01/10/2021,29/09/2021,B & Q 1179,GLOUCESTER,,GL12SG,REDACTED,556*********9934,5200,HOME SUPPLY WAREHOUSE STORES,72,Pound Sterling (826),1.000000000,72,Corporate,D,85481471273343081211860,02/10/2021,GLOUCESTER CITY COUNCIL
Gloucester City Council,23UE,"	Gloucester Life Museum",MU005,"	Archiving/Materials",3402/C306,01/10/2021,30/09/2021,COTSWOLD INTERIORS,GLOUCESTER,GBR,GL1 1PN,REDACTED,556*********9934,1799,SPECIAL TRADE CONTRACTORS,4,Pound Sterling (826),1.000000000,4,Corporate,D,55184221273612730052939,02/10/2021,GLOUCESTER CITY COUNCIL
Gloucester City Council,23UE,"	Head of Regeneration & Economic Development",MT005,"	Public Transport - Staff",2402,08/09/2021,07/09/2021,Trainline,London,GBR,1445,REDACTED,556*********1418,4112,PASSENGER RAILWAYS,97.1,Pound Sterling (826),1.000000000,97.1,Corporate,D,85130081250135871662784,02/10/2021,GLOUCESTER CITY COUNCIL
Gloucester City Council,23UE,"	Managing Director & Directors",MT001,"	Public Transport - Staff",2402,16/09/2021,15/09/2021,Trainline,London,GBR,1445,REDACTED,556*********1418,4112,PASSENGER RAILWAYS,114.7,Pound Sterling (826),1.000000000,114.7,Corporate,D,85130081258136334454019,02/10/2021,GLOUCESTER CITY COUNCIL
Gloucester City Council,23UE,Countryside Unit,EP003,"	Operative Clothing Allowances",0502,17/09/2021,16/09/2021,eBay O*13-07612-08705,Luxembourg,LUX,2449,REDACTED,556*********6734,5311,DEPARTMENT STORES,3.39,Pound Sterling (826),1.000000000,3.39,Corporate,D,15265671259008407498721,02/10/2021,GLOUCESTER CITY COUNCIL
Gloucester City Council,23UE,Countryside Unit,EP003,"	Operative Clothing Allowances",0502,30/09/2021,29/09/2021,eBay O*09-07666-43805,Luxembourg,LUX,2449,REDACTED,556*********6734,5311,DEPARTMENT STORES,11.46,Pound Sterling (826),1.000000000,11.46,Corporate,D,15265671272007662195850,02/10/2021,GLOUCESTER CITY COUNCIL
Gloucester City Council,23UE,Countryside Unit,EP003,"	Operative Clothing Allowances",0502,30/09/2021,29/09/2021,eBay O*23-07663-77020,Luxembourg,LUX,2449,REDACTED,556*********6734,5311,DEPARTMENT STORES,6.41,Pound Sterling (826),1.000000000,6.41,Corporate,D,15265671272007655724948,02/10/2021,GLOUCESTER CITY COUNCIL
Gloucester City Council,23UE,Civica Admin Charges,BI002,"	Professional Advice/Consultants Fees",3952,13/09/2021,09/09/2021,WWW.GOV.UK,C@HMCTS.GSI.G,,LS1 2BA,REDACTED,556*********4301,8999,PROFESSIONAL SERVICES NOT ELSEWHERE CLASSIFIED,1.5,Pound Sterling (826),1.000000000,1.5,Corporate,D,85481471253337622082032,02/10/2021,GLOUCESTER CITY COUNCIL
Gloucester City Council,23UE,Civica Admin Charges,BI002,"	Professional Advice/Consultants Fees",3952,29/09/2021,28/09/2021,DISCLOSURE AND BARRING,LIVERPOOL,GBR,L3 1QY,REDACTED,556*********4301,9399,GOVERNMENT SERVICES NOT ELSEWHERE CLASSIFIED,23,Pound Sterling (826),1.000000000,23,Corporate,D,05272471272910003301193,02/10/2021,GLOUCESTER CITY COUNCIL
Gloucester City Council,23UE,Docks Complex - Services,AM006,Catering Provisions,3103,06/09/2021,03/09/2021,MCOLLS,GLOUCESTERSHI,GBR,GL1 2DN,REDACTED,556*********6128,5499,"MISC FOOD STORES-SPECIALITY,CONVENIENCE,MARKETS,VENDING MACHINES",1.15,Pound Sterling (826),1.000000000,1.15,Corporate,D,05130861247910038527263,02/10/2021,GLOUCESTER CITY COUNCIL
Gloucester City Council,23UE,North Warehouse,AM009,"	Equipment and Furniture",3001,07/09/2021,06/09/2021,AMZNMKTPLACE AMAZON.CO,AMAZON.CO.UK,GBR,EC2A 2FA,REDACTED,556*********6128,5999,MISCELLANEOUS AND RETAIL STORES,78.49,Pound Sterling (826),1.000000000,78.49,Corporate,D,85389241249135505387099,02/10/2021,GLOUCESTER CITY COUNCIL
Gloucester City Council,23UE,North Warehouse,AM009,"	Equipment and Furniture",3001,08/09/2021,07/09/2021,GLOUCESTER CITY COUNCI,GLOUCESTER,GBR,GL1 2EP,REDACTED,556*********6128,7523,AUTOMOBILE PARKING LOTS AND GARAGES,1.4,Pound Sterling (826),1.000000000,1.4,Corporate,D,55184221251532519538047,02/10/2021,GLOUCESTER CITY COUNCIL
Gloucester City Council,23UE,North Warehouse,AM009,"	Equipment and Furniture",3001,13/09/2021,10/09/2021,AMZNMktplace,amazon.co.uk,GBR,EC2A 2FA,REDACTED,556*********6128,5999,MISCELLANEOUS AND RETAIL STORES,39.97,Pound Sterling (826),1.000000000,39.97,Corporate,D,52692011253200503768245,02/10/2021,GLOUCESTER CITY COUNCIL
Gloucester City Council,23UE,North Warehouse,AM009,"	Equipment and Furniture",3001,15/09/2021,14/09/2021,AMZNMktplace,amazon.co.uk,GBR,EC2A 2FA,REDACTED,556*********6128,5999,MISCELLANEOUS AND RETAIL STORES,21.96,Pound Sterling (826),1.000000000,21.96,Corporate,D,52692011257200672370415,02/10/2021,GLOUCESTER CITY COUNCIL
Gloucester City Council,23UE,North Warehouse,AM009,"	Equipment and Furniture",3001,16/09/2021,14/09/2021,SCREWFIX DIRECT,YEOVIL,,BA228RT,REDACTED,556*********6128,5211,LUMBER AND BUILDING MATERIALS STORES,36,Pound Sterling (826),1.000000000,36,Corporate,D,85481471258338961008765,02/10/2021,GLOUCESTER CITY COUNCIL
Gloucester City Council,23UE,North Warehouse,AM009,"	Equipment and Furniture",3001,16/09/2021,15/09/2021,AMZNMktplace,amazon.co.uk,GBR,EC2A 2FA,REDACTED,556*********6128,5999,MISCELLANEOUS AND RETAIL STORES,9.98,Pound Sterling (826),1.000000000,9.98,Corporate,D,52692011258200936743000,02/10/2021,GLOUCESTER CITY COUNCIL
Gloucester City Council,23UE,North Warehouse,AM009,"	Equipment and Furniture",3001,17/09/2021,15/09/2021,SCREWFIX DIRECT,YEOVIL,,BA228RT,REDACTED,556*********6128,5211,LUMBER AND BUILDING MATERIALS STORES,29,Pound Sterling (826),1.000000000,29,Corporate,D,85481471259339159283649,02/10/2021,GLOUCESTER CITY COUNCIL
Gloucester City Council,23UE,North Warehouse,AM009,"	Equipment and Furniture",3001,21/09/2021,19/09/2021,AMZNMKTPLACE AMAZON.CO,AMAZON.CO.UK,GBR,EC2A 2FA,REDACTED,556*********6128,5999,MISCELLANEOUS AND RETAIL STORES,11.99,Pound Sterling (826),1.000000000,11.99,Corporate,D,85389241263137648689408,02/10/2021,GLOUCESTER CITY COUNCIL
Gloucester City Council,23UE,North Warehouse,AM006,Catering Provisions,3103,27/09/2021,23/09/2021,BARGAIN BOOZE 2036,TUFFLEY,,GL4 0NB,REDACTED,556*********6128,5921,"PACKAGE STORES, BEER, LIQUOR",1.1,Pound Sterling (826),1.000000000,1.1,Corporate,D,85481471267341401572019,02/10/2021,GLOUCESTER CITY COUNCIL
Gloucester City Council,23UE,North Warehouse,AM009,"	Equipment and Furniture",3001,27/09/2021,24/09/2021,SCREWFIX DIRECT,YEOVIL,,BA228RT,REDACTED,556*********6128,5211,LUMBER AND BUILDING MATERIALS STORES,33.29,Pound Sterling (826),1.000000000,33.29,Corporate,D,85481471268341673455512,02/10/2021,GLOUCESTER CITY COUNCIL
Gloucester City Council,23UE,North Warehouse,AM009,"	Equipment and Furniture",3001,28/09/2021,26/09/2021,SCREWFIX DIRECT,YEOVIL,,BA228RT,REDACTED,556*********6128,5211,LUMBER AND BUILDING MATERIALS STORES,-33.29,Pound Sterling (826),1.000000000,-33.29,Corporate,C,85481471270342282132191,02/10/2021,GLOUCESTER CITY COUNCIL
Gloucester City Council,23UE,North Warehouse,AM009,"	Equipment and Furniture",3001,30/09/2021,29/09/2021,AMZNMktplace,amazon.co.uk,GBR,EC2A 2FA,REDACTED,556*********6128,5999,MISCELLANEOUS AND RETAIL STORES,16.94,Pound Sterling (826),1.000000000,16.94,Corporate,D,52692011272200004656003,02/10/2021,GLOUCESTER CITY COUNCIL
Gloucester City Council,23UE,Docks Complex - Services,AM006,Catering Provisions,3103,01/10/2021,30/09/2021,Keelings Convenience,Gloucester,GBR,GL1 2PG,REDACTED,556*********6128,5411,"GROCERY STORES, SUPERMARKETS",1.49,Pound Sterling (826),1.000000000,1.49,Corporate,D,75433121274136435450675,02/10/2021,GLOUCESTER CITY COUNCIL
Gloucester City Council,23UE,"	Economic Development",ED001,"	General Supplies/Materials",3025,20/09/2021,17/09/2021,MIRO.COM,SAN FRANCISCO,CA,94105,REDACTED,556*********4234,7372,COMPUTER AND DATA PROCESSING SERVICES,288,US Dollar (840),1.336861161,215.43,Corporate,D,82711161260000007532461,02/10/2021,GLOUCESTER CITY COUNCIL
Gloucester City Council,23UE,Council Streetcare Team,NE002,"	Mileage and Travel Allowances",2401,22/09/2021,21/09/2021,Trainline,London,GBR,1445,REDACTED,556*********4234,4112,PASSENGER RAILWAYS,92.9,Pound Sterling (826),1.000000000,92.9,Corporate,D,85130081264137681415860,02/10/2021,GLOUCESTER CITY COUNCIL
Gloucester City Council,23UE,"	Housing Services",HS001,"	Advertising & Publicity",3404,30/09/2021,29/09/2021,GOOGLE ADS4453495143,Dublin,IRL,8QQ7+WG,REDACTED,556*********4234,7311,ADVERTISING SERVICES,2.7,Pound Sterling (826),1.000000000,2.7,Corporate,D,15265671272001511578739,02/10/2021,GLOUCESTER CITY COUNCIL
Gloucester City Council,23UE,Council Streetcare Team,NE002,"	Mileage and Travel Allowances",2401,30/09/2021,29/09/2021,Trainline,London,GBR,1445,REDACTED,556*********4234,4112,PASSENGER RAILWAYS,92.9,Pound Sterling (826),1.000000000,92.9,Corporate,D,85130081272138166905979,02/10/2021,GLOUCESTER CITY COUNCIL
Gloucester City Council,23UE,Museum of Gloucester,MU002,Catering Provisions,3103,03/09/2021,02/09/2021,BOOKER LIMITED GLOUCES,GLOUCESTER,GBR,GL4 3RT,REDACTED,556*********4253,5811,CATERERS,251.7,Pound Sterling (826),1.000000000,251.7,Corporate,D,55184221245532464326470,02/10/2021,GLOUCESTER CITY COUNCIL
Gloucester City Council,23UE,Museum of Gloucester,MU002,Catering Provisions,3103,06/09/2021,04/09/2021,POUNDLAND LTD 1167,GLOUCESTER,,GL11XH,REDACTED,556*********4253,5310,DISCOUNT STORES,2,Pound Sterling (826),1.000000000,2,Corporate,D,85481471248336215544596,02/10/2021,GLOUCESTER CITY COUNCIL
Gloucester City Council,23UE,Museum of Gloucester,MU002,"	Cleaning Services & Materials",1500,07/09/2021,06/09/2021,AMZNMktplace,amazon.co.uk,GBR,EC2A 2FA,REDACTED,556*********4253,5999,MISCELLANEOUS AND RETAIL STORES,6.79,Pound Sterling (826),1.000000000,6.79,Corporate,D,52692011249200305819888,02/10/2021,GLOUCESTER CITY COUNCIL
Gloucester City Council,23UE,"	Gloucester Guildhall",GH001,"	General Supplies/Materials",3025,09/09/2021,08/09/2021,WILKO RETAIL LIMITED,GLOUCESTER,GBR,GL1 1SL,REDACTED,556*********4253,5399,MISCELLANEOUS GENERAL MERCHANDISE STORES,27.25,Pound Sterling (826),1.000000000,27.25,Corporate,D,05272461252910013220263,02/10/2021,GLOUCESTER CITY COUNCIL
Gloucester City Council,23UE,Blackfriars,GH010,Catering Provisions,3103,13/09/2021,11/09/2021,TESCO STORE 2581,GLOUCESTER,GBR,GL1 2SR,REDACTED,556*********4253,5411,"GROCERY STORES, SUPERMARKETS",9.8,Pound Sterling (826),1.000000000,9.8,Corporate,D,05130861255910009721217,02/10/2021,GLOUCESTER CITY COUNCIL
Gloucester City Council,23UE,Blackfriars,GH010,Catering Provisions,3103,14/09/2021,13/09/2021,B&M 298 - GLOUCESTER,GLOUCESTER,GBR,GL1 2DH,REDACTED,556*********4253,5399,MISCELLANEOUS GENERAL MERCHANDISE STORES,4.49,Pound Sterling (826),1.000000000,4.49,Corporate,D,05272471257910046206747,02/10/2021,GLOUCESTER CITY COUNCIL
Gloucester City Council,23UE,Blackfriars,GH010,Catering Provisions,3103,14/09/2021,13/09/2021,TESCO STORES 6819,GLOUCESTER,GBR,GL1 1TP,REDACTED,556*********4253,5411,"GROCERY STORES, SUPERMARKETS",5.1,Pound Sterling (826),1.000000000,5.1,Corporate,D,05130861257910010207063,02/10/2021,GLOUCESTER CITY COUNCIL
Gloucester City Council,23UE,"	Guildhall Events",GH002,Events,3070,16/09/2021,15/09/2021,WWW.ROOMSBOOKED.COM,INTERNET,GBR,GL50 4BA,REDACTED,556*********4253,7011,"LODGING, HOTELS, MOTELS, RESORTS",198,Pound Sterling (826),1.000000000,198,Corporate,D,05272461259910003189612,02/10/2021,GLOUCESTER CITY COUNCIL
Gloucester City Council,23UE,"	Guildhall Events",GH002,Events,3070,16/09/2021,15/09/2021,WWW.ROOMSBOOKED.COM,INTERNET,GBR,GL50 4BA,REDACTED,556*********4253,7011,"LODGING, HOTELS, MOTELS, RESORTS",99,Pound Sterling (826),1.000000000,99,Corporate,D,05272461259910003207976,02/10/2021,GLOUCESTER CITY COUNCIL
Gloucester City Council,23UE,Blackfriars,GH010,Catering Provisions,3103,16/09/2021,15/09/2021,B&M 298 - GLOUCESTER,GLOUCESTER,GBR,GL1 2DH,REDACTED,556*********4253,5399,MISCELLANEOUS GENERAL MERCHANDISE STORES,2.29,Pound Sterling (826),1.000000000,2.29,Corporate,D,05272471259910046118809,02/10/2021,GLOUCESTER CITY COUNCIL
Gloucester City Council,23UE,Blackfriars,GH010,Catering Provisions,3103,16/09/2021,15/09/2021,TESCO STORES 6819,GLOUCESTER,GBR,GL1 1TP,REDACTED,556*********4253,5411,"GROCERY STORES, SUPERMARKETS",5.1,Pound Sterling (826),1.000000000,5.1,Corporate,D,05130861259910010257165,02/10/2021,GLOUCESTER CITY COUNCIL
Gloucester City Council,23UE,Civica Admin Charges,BI002,"	Professional Advice/Consultants Fees",3952,24/09/2021,22/09/2021,HMCOURTS-SERVICE.G,01452420100,,GL12ZG,REDACTED,556*********3063,9222,FINES,82,Pound Sterling (826),1.000000000,82,Corporate,D,85481471266341133961481,02/10/2021,GLOUCESTER CITY COUNCIL
Gloucester City Council,23UE,Civica Admin Charges,BI002,"	Professional Advice/Consultants Fees",3952,24/09/2021,22/09/2021,HMCOURTS-SERVICE.G,01452420100,,GL12ZG,REDACTED,556*********3063,9222,FINES,671,Pound Sterling (826),1.000000000,671,Corporate,D,85481471266341133961499,02/10/2021,GLOUCESTER CITY COUNCIL
Gloucester City Council,23UE,"	Guildhall Events",GH002,Events,3070,03/09/2021,02/09/2021,ASDA SUPERSTORE,GLOUCESTER,GBR,GL1 1DS,REDACTED,556*********1585,5411,"GROCERY STORES, SUPERMARKETS",19.66,Pound Sterling (826),1.000000000,19.66,Corporate,D,05130861246910065257306,02/10/2021,GLOUCESTER CITY COUNCIL
Gloucester City Council,23UE,"	Guildhall Bar and Caf�",GH005,Catering Provisions,3103,03/09/2021,02/09/2021,ASDA SUPERSTORE,GLOUCESTER,GBR,GL1 1DS,REDACTED,556*********1585,5411,"GROCERY STORES, SUPERMARKETS",1.58,Pound Sterling (826),1.000000000,1.58,Corporate,D,05130861246910065257660,02/10/2021,GLOUCESTER CITY COUNCIL
Gloucester City Council,23UE,Blackfriars,GH010,Catering Provisions,3103,03/09/2021,02/09/2021,ASDA SUPERSTORE,GLOUCESTER,GBR,GL1 1DS,REDACTED,556*********1585,5411,"GROCERY STORES, SUPERMARKETS",9.5,Pound Sterling (826),1.000000000,9.5,Corporate,D,05130861246910065257918,02/10/2021,GLOUCESTER CITY COUNCIL
Gloucester City Council,23UE,"	Guildhall Events",GH002,"	Advertising & Publicity",3404,06/09/2021,03/09/2021,FACEBK SGEZX6T9X2,fb.me/ads,IRL,2,REDACTED,556*********1585,7311,ADVERTISING SERVICES,100,Pound Sterling (826),1.000000000,100,Corporate,D,15265671246000296087349,02/10/2021,GLOUCESTER CITY COUNCIL
Gloucester City Council,23UE,"	Guildhall Bar and Caf�",GH005,Catering Provisions,3103,06/09/2021,04/09/2021,TESCO STORES 6819,GLOUCESTER,GBR,GL1 1TP,REDACTED,556*********1585,5411,"GROCERY STORES, SUPERMARKETS",3.8,Pound Sterling (826),1.000000000,3.8,Corporate,D,05130861248910021265102,02/10/2021,GLOUCESTER CITY COUNCIL
Gloucester City Council,23UE,"	Guildhall Cinema",GH003,"	Equipment and Furniture",3001,07/09/2021,06/09/2021,BATTERYCLERK BV,ROTTERDAM,ZH,3047AC,REDACTED,556*********1585,5732,ELECTRONIC SALES,41.97,Pound Sterling (826),1.000000000,41.97,Corporate,D,82644311249000002939850,02/10/2021,GLOUCESTER CITY COUNCIL
Gloucester City Council,23UE,"	Guildhall Bar and Caf�",GH005,Catering Provisions,3103,08/09/2021,07/09/2021,PPOINT_*GRACIOUS STORE,GLOUCESTER,GBR,GL1 1QN,REDACTED,556*********1585,5499,"MISC FOOD STORES-SPECIALITY,CONVENIENCE,MARKETS,VENDING MACHINES",4.67,Pound Sterling (826),1.000000000,4.67,Corporate,D,85125691250135756572796,02/10/2021,GLOUCESTER CITY COUNCIL
Gloucester City Council,23UE,"	Guildhall Bar and Caf�",GH005,Catering Provisions,3103,09/09/2021,08/09/2021,OAKESYS FRUIT AND VEG,GLOUCESTER GL,,GL1 1RX,REDACTED,556*********1585,5411,"GROCERY STORES, SUPERMARKETS",2.2,Pound Sterling (826),1.000000000,2.2,Corporate,D,55203341251529006454749,02/10/2021,GLOUCESTER CITY COUNCIL
Gloucester City Council,23UE,"	Guildhall Bar and Caf�",GH005,Catering Provisions,3103,09/09/2021,08/09/2021,POUNDSTRETCHER STOCK,HUDDERSFIELD,,LE9 2BJ,REDACTED,556*********1585,5331,VARIETY STORES,1.66,Pound Sterling (826),1.000000000,1.66,Corporate,D,55541961252469003171191,02/10/2021,GLOUCESTER CITY COUNCIL
Gloucester City Council,23UE,"	Guildhall Bar and Caf�",GH005,Catering Provisions,3103,09/09/2021,08/09/2021,TESCO STORES LTD 6498,GLOUCESTER,GBR,GL1 1SZ,REDACTED,556*********1585,5411,"GROCERY STORES, SUPERMARKETS",7.5,Pound Sterling (826),1.000000000,7.5,Corporate,D,05130861252910016089627,02/10/2021,GLOUCESTER CITY COUNCIL
Gloucester City Council,23UE,"	Guildhall Bar and Caf�",GH005,Catering Provisions,3103,09/09/2021,08/09/2021,BOOKER LIMITED GLOUCES,GLOUCESTER,GBR,GL4 3RT,REDACTED,556*********1585,5811,CATERERS,98.74,Pound Sterling (826),1.000000000,98.74,Corporate,D,55184221251532523254037,02/10/2021,GLOUCESTER CITY COUNCIL
Gloucester City Council,23UE,"	Guildhall Bar and Caf�",GH005,Catering Provisions,3103,10/09/2021,08/09/2021,SAINSBURYS S/MKTS,BARNWOOD,,GL43RT,REDACTED,556*********1585,5411,"GROCERY STORES, SUPERMARKETS",24.9,Pound Sterling (826),1.000000000,24.9,Corporate,D,85481471252337284432138,02/10/2021,GLOUCESTER CITY COUNCIL
Gloucester City Council,23UE,"	Guildhall Bar and Caf�",GH005,Catering Provisions,3103,10/09/2021,08/09/2021,HOLLAND & BARRETT,GLOUCESTER,,GL1 1PD,REDACTED,556*********1585,5999,MISCELLANEOUS AND RETAIL STORES,3.96,Pound Sterling (826),1.000000000,3.96,Corporate,D,85481471252337392605195,02/10/2021,GLOUCESTER CITY COUNCIL
Gloucester City Council,23UE,"	Guildhall Bar and Caf�",GH005,Catering Provisions,3103,10/09/2021,09/09/2021,MARKS&SPENCER PLC,GLOUCESTER,GBR,GL1 1PH,REDACTED,556*********1585,5411,"GROCERY STORES, SUPERMARKETS",3.45,Pound Sterling (826),1.000000000,3.45,Corporate,D,05130861253910050410654,02/10/2021,GLOUCESTER CITY COUNCIL
Gloucester City Council,23UE,"	Guildhall Events",GH002,Events,3070,13/09/2021,10/09/2021,TESCO STORE 2581,GLOUCESTER,GBR,GL1 2SR,REDACTED,556*********1585,5411,"GROCERY STORES, SUPERMARKETS",35.1,Pound Sterling (826),1.000000000,35.1,Corporate,D,05130861254910016746406,02/10/2021,GLOUCESTER CITY COUNCIL
Gloucester City Council,23UE,"	Guildhall Bar and Caf�",GH005,Catering Provisions,3103,13/09/2021,11/09/2021,MARKS&SPENCER PLC,GLOUCESTER,GBR,GL1 1PH,REDACTED,556*********1585,5411,"GROCERY STORES, SUPERMARKETS",2.3,Pound Sterling (826),1.000000000,2.3,Corporate,D,05130861255910048383185,02/10/2021,GLOUCESTER CITY COUNCIL
Gloucester City Council,23UE,"	Guildhall Events",GH002,Events,3070,13/09/2021,11/09/2021,MARKS&SPENCER PLC,GLOUCESTER,GBR,GL1 1PH,REDACTED,556*********1585,5411,"GROCERY STORES, SUPERMARKETS",13,Pound Sterling (826),1.000000000,13,Corporate,D,05130861255910048383268,02/10/2021,GLOUCESTER CITY COUNCIL
Gloucester City Council,23UE,"	Guildhall Bar and Caf�",GH005,Catering Provisions,3103,13/09/2021,11/09/2021,MARKS&SPENCER PLC,GLOUCESTER,GBR,GL1 1PH,REDACTED,556*********1585,5411,"GROCERY STORES, SUPERMARKETS",4.55,Pound Sterling (826),1.000000000,4.55,Corporate,D,05130861255910048509128,02/10/2021,GLOUCESTER CITY COUNCIL
Gloucester City Council,23UE,"	Guildhall Bar and Caf�",GH005,Catering Provisions,3103,13/09/2021,11/09/2021,TESCO STORES LTD 6498,GLOUCESTER,GBR,GL1 1SZ,REDACTED,556*********1585,5411,"GROCERY STORES, SUPERMARKETS",7.9,Pound Sterling (826),1.000000000,7.9,Corporate,D,05130861255910016994013,02/10/2021,GLOUCESTER CITY COUNCIL
Gloucester City Council,23UE,"	Guildhall Events",GH002,Events,3070,13/09/2021,11/09/2021,TESCO STORES LTD 6498,GLOUCESTER,GBR,GL1 1SZ,REDACTED,556*********1585,5411,"GROCERY STORES, SUPERMARKETS",4.95,Pound Sterling (826),1.000000000,4.95,Corporate,D,05130861255910016994013,02/10/2021,GLOUCESTER CITY COUNCIL
Gloucester City Council,23UE,"	Guildhall Bar and Caf�",GH005,Catering Provisions,3103,13/09/2021,11/09/2021,TESCO STORES 6819,GLOUCESTER,GBR,GL1 1TP,REDACTED,556*********1585,5411,"GROCERY STORES, SUPERMARKETS",7.4,Pound Sterling (826),1.000000000,7.4,Corporate,D,05130861255910017023671,02/10/2021,GLOUCESTER CITY COUNCIL
Gloucester City Council,23UE,"	Guildhall Events",GH002,Events,3070,14/09/2021,02/09/2021,MIPERMIT,CHIPPENHAM,GBR,SN15 5FD,REDACTED,556*********1585,7523,AUTOMOBILE PARKING LOTS AND GARAGES,50,Pound Sterling (826),1.000000000,50,Corporate,D,55184221256512577869315,02/10/2021,GLOUCESTER CITY COUNCIL
Gloucester City Council,23UE,"	Guildhall Events",GH002,Events,3070,15/09/2021,14/09/2021,TESCO STORES 5363,GLOUCESTER,GBR,GL3 4AA,REDACTED,556*********1585,5411,"GROCERY STORES, SUPERMARKETS",85.67,Pound Sterling (826),1.000000000,85.67,Corporate,D,05130861258910015624196,02/10/2021,GLOUCESTER CITY COUNCIL
Gloucester City Council,23UE,"	Guildhall Bar and Caf�",GH005,Catering Provisions,3103,15/09/2021,14/09/2021,BOOKER LIMITED GLOUCES,GLOUCESTER,GBR,GL4 3RT,REDACTED,556*********1585,5811,CATERERS,46.75,Pound Sterling (826),1.000000000,46.75,Corporate,D,55184221257522584341306,02/10/2021,GLOUCESTER CITY COUNCIL
Gloucester City Council,23UE,Blackfriars,GH010,Catering Provisions,3103,15/09/2021,14/09/2021,BOOKER LIMITED GLOUCES,GLOUCESTER,GBR,GL4 3RT,REDACTED,556*********1585,5811,CATERERS,44.93,Pound Sterling (826),1.000000000,44.93,Corporate,D,55184221257522584341702,02/10/2021,GLOUCESTER CITY COUNCIL
Gloucester City Council,23UE,"	Guildhall Bar and Caf�",GH005,Catering Provisions,3103,15/09/2021,14/09/2021,BOOKER LIMITED GLOUCES,GLOUCESTER,GBR,GL4 3RT,REDACTED,556*********1585,5811,CATERERS,91.98,Pound Sterling (826),1.000000000,91.98,Corporate,D,55184221257522584341736,02/10/2021,GLOUCESTER CITY COUNCIL
Gloucester City Council,23UE,"	Guildhall Events",GH002,Events,3070,16/09/2021,14/09/2021,W M MORRISON STORE,575 GLOUCESTE,,GL1 4BD,REDACTED,556*********1585,5411,"GROCERY STORES, SUPERMARKETS",49.87,Pound Sterling (826),1.000000000,49.87,Corporate,D,85481471258339043541989,02/10/2021,GLOUCESTER CITY COUNCIL
Gloucester City Council,23UE,"	Guildhall Events",GH002,Events,3070,16/09/2021,15/09/2021,WOK ON FLAME,Gloucester,GBR,GL1 2PT,REDACTED,556*********1585,5812,"EATING PLACES, RESTAURANTS",6.35,Pound Sterling (826),1.000000000,6.35,Corporate,D,05371341258350609882663,02/10/2021,GLOUCESTER CITY COUNCIL
Gloucester City Council,23UE,"	Guildhall Events",GH002,Events,3070,16/09/2021,15/09/2021,MARKS&SPENCER PLC,GLOUCESTER,GBR,GL1 1PH,REDACTED,556*********1585,5411,"GROCERY STORES, SUPERMARKETS",4.74,Pound Sterling (826),1.000000000,4.74,Corporate,D,05130861259910050535009,02/10/2021,GLOUCESTER CITY COUNCIL
Gloucester City Council,23UE,"	Guildhall Events",GH002,Events,3070,16/09/2021,15/09/2021,MARKS&SPENCER PLC,GLOUCESTER,GBR,GL1 1PH,REDACTED,556*********1585,5411,"GROCERY STORES, SUPERMARKETS",16.5,Pound Sterling (826),1.000000000,16.5,Corporate,D,05130861259910050535108,02/10/2021,GLOUCESTER CITY COUNCIL
Gloucester City Council,23UE,"	Guildhall Events",GH002,Events,3070,16/09/2021,15/09/2021,MARKS&SPENCER PLC,GLOUCESTER,GBR,GL1 1PH,REDACTED,556*********1585,5411,"GROCERY STORES, SUPERMARKETS",12.8,Pound Sterling (826),1.000000000,12.8,Corporate,D,05130861259910050537419,02/10/2021,GLOUCESTER CITY COUNCIL
Gloucester City Council,23UE,"	Guildhall Events",GH002,Events,3070,17/09/2021,16/09/2021,MARKS&SPENCER PLC,GLOUCESTER,GBR,GL1 1PH,REDACTED,556*********1585,5411,"GROCERY STORES, SUPERMARKETS",0.85,Pound Sterling (826),1.000000000,0.85,Corporate,D,05130861260910051595686,02/10/2021,GLOUCESTER CITY COUNCIL
Gloucester City Council,23UE,"	Guildhall Events",GH002,"	Advertising & Publicity",3404,20/09/2021,18/09/2021,MailChimp,30308,GA,30308,REDACTED,556*********1585,5818,DIGITAL GOODS - MULTI-CATEGORY,46.24,Pound Sterling (826),1.000000000,46.24,Corporate,D,15270211261000072727553,02/10/2021,GLOUCESTER CITY COUNCIL
Gloucester City Council,23UE,"	Guildhall Events",GH002,"	Advertising & Publicity",3404,20/09/2021,19/09/2021,FACEBK J27M57B9X2,fb.me/ads,IRL,2,REDACTED,556*********1585,7311,ADVERTISING SERVICES,63.71,Pound Sterling (826),1.000000000,63.71,Corporate,D,15265671261000559447545,02/10/2021,GLOUCESTER CITY COUNCIL
Gloucester City Council,23UE,"	Guildhall Bar and Caf�",GH005,Catering Provisions,3103,20/09/2021,18/09/2021,TESCO STORES 6819,GLOUCESTER,GBR,GL1 1TP,REDACTED,556*********1585,5411,"GROCERY STORES, SUPERMARKETS",2.6,Pound Sterling (826),1.000000000,2.6,Corporate,D,05130861262910015792401,02/10/2021,GLOUCESTER CITY COUNCIL
Gloucester City Council,23UE,"	Guildhall Events",GH002,Events,3070,21/09/2021,20/09/2021,ASDA SUPERSTORE,GLOUCESTER,GBR,GL1 1DS,REDACTED,556*********1585,5411,"GROCERY STORES, SUPERMARKETS",7.05,Pound Sterling (826),1.000000000,7.05,Corporate,D,05130861264910065333096,02/10/2021,GLOUCESTER CITY COUNCIL
Gloucester City Council,23UE,"	Gloucester Guildhall",GH001,"	Cleaning Services & Materials",1500,22/09/2021,21/09/2021,B&M 298 - GLOUCESTER,GLOUCESTER,GBR,GL1 2DH,REDACTED,556*********1585,5399,MISCELLANEOUS GENERAL MERCHANDISE STORES,11.96,Pound Sterling (826),1.000000000,11.96,Corporate,D,05272471265910035245318,02/10/2021,GLOUCESTER CITY COUNCIL
Gloucester City Council,23UE,"	Guildhall Events",GH002,Events,3070,22/09/2021,21/09/2021,TESCO STORES 5363,GLOUCESTER,GBR,GL3 4AA,REDACTED,556*********1585,5411,"GROCERY STORES, SUPERMARKETS",47.99,Pound Sterling (826),1.000000000,47.99,Corporate,D,05130861265910016156868,02/10/2021,GLOUCESTER CITY COUNCIL
Gloucester City Council,23UE,"	Guildhall Bar and Caf�",GH005,Catering Provisions,3103,23/09/2021,22/09/2021,TESCO STORES 6819,GLOUCESTER,GBR,GL1 1TP,REDACTED,556*********1585,5411,"GROCERY STORES, SUPERMARKETS",2.6,Pound Sterling (826),1.000000000,2.6,Corporate,D,05130861266910015808732,02/10/2021,GLOUCESTER CITY COUNCIL
Gloucester City Council,23UE,"	Guildhall Bar and Caf�",GH005,Catering Provisions,3103,27/09/2021,25/09/2021,B&M 298 - GLOUCESTER,GLOUCESTER,GBR,GL1 2DH,REDACTED,556*********1585,5399,MISCELLANEOUS GENERAL MERCHANDISE STORES,3,Pound Sterling (826),1.000000000,3,Corporate,D,05272471269910068101590,02/10/2021,GLOUCESTER CITY COUNCIL
Gloucester City Council,23UE,"	Guildhall Bar and Caf�",GH005,Catering Provisions,3103,29/09/2021,28/09/2021,MARKS&SPENCER PLC,GLOUCESTER,GBR,GL1 1PH,REDACTED,556*********1585,5411,"GROCERY STORES, SUPERMARKETS",2.4,Pound Sterling (826),1.000000000,2.4,Corporate,D,05130861272910050586849,02/10/2021,GLOUCESTER CITY COUNCIL
Gloucester City Council,23UE,"	Crematorium",CC003,"	Equipment and Furniture",3001,06/09/2021,02/09/2021,SCREWFIX DIR LTD,GLOUC1027,,GL43SJ,REDACTED,556*********0923,5211,LUMBER AND BUILDING MATERIALS STORES,129.78,Pound Sterling (826),1.000000000,129.78,Corporate,D,85481471246335668219682,02/10/2021,GLOUCESTER CITY COUNCIL
Gloucester City Council,23UE,"	The Arbor",CC001,Catering Provisions,3103,06/09/2021,03/09/2021,PROPER JOB - GLOUCESTE,GLOUCESTER,GBR,GL4 3EA,REDACTED,556*********0923,5251,HARDWARE STORES,42.99,Pound Sterling (826),1.000000000,42.99,Corporate,D,05272461247910003498240,02/10/2021,GLOUCESTER CITY COUNCIL
Gloucester City Council,23UE,"	The Arbor",CC001,Catering Provisions,3103,06/09/2021,03/09/2021,LIDL GB GLOUCESTER,GLOUCESTER,GBR,GL4 4LP,REDACTED,556*********0923,5411,"GROCERY STORES, SUPERMARKETS",4.74,Pound Sterling (826),1.000000000,4.74,Corporate,D,05130861247910046195392,02/10/2021,GLOUCESTER CITY COUNCIL
Gloucester City Council,23UE,"	Crematorium",CC003,"	Equipment and Furniture",3001,09/09/2021,07/09/2021,SCREWFIX DIR LTD,GLOUC1027,,GL43SJ,REDACTED,556*********0923,5211,LUMBER AND BUILDING MATERIALS STORES,-34.99,Pound Sterling (826),1.000000000,-34.99,Corporate,C,85481471251337012179077,02/10/2021,GLOUCESTER CITY COUNCIL
Gloucester City Council,23UE,"	The Arbor",CC001,Catering Provisions,3103,13/09/2021,10/09/2021,W M MORRISON STORE,575 GLOUCESTE,,GL1 4BD,REDACTED,556*********0923,5411,"GROCERY STORES, SUPERMARKETS",9.15,Pound Sterling (826),1.000000000,9.15,Corporate,D,85481471254337937947316,02/10/2021,GLOUCESTER CITY COUNCIL
Gloucester City Council,23UE,"	Crematorium",CC003,National Assistance Burial Expenses,3022,23/09/2021,21/09/2021,GLOUCESTERSHIRE.GOV.UK,GLOUCESTER,,GL1 2TG,REDACTED,556*********0923,9399,GOVERNMENT SERVICES NOT ELSEWHERE CLASSIFIED,11,Pound Sterling (826),1.000000000,11,Corporate,D,55541961265999000001830,02/10/2021,GLOUCESTER CITY COUNCIL
Gloucester City Council,23UE,"	Cemeteries",CC004,Grounds Maintenance,1100,24/09/2021,23/09/2021,BROCKWORTH GARDEN CENT,GLOUCESTER,,GL3 4PU,REDACTED,556*********0923,5261,"NURSERIES, LAWN AND GARDEN SUPPLY STORES",119.96,Pound Sterling (826),1.000000000,119.96,Corporate,D,55504431266071228333581,02/10/2021,GLOUCESTER CITY COUNCIL
Gloucester City Council,23UE,"	Cemeteries",CC004,Grounds Maintenance,1100,24/09/2021,23/09/2021,BROCKWORTH GARDEN CENT,GLOUCESTER,,GL3 4PU,REDACTED,556*********0923,5261,"NURSERIES, LAWN AND GARDEN SUPPLY STORES",99.98,Pound Sterling (826),1.000000000,99.98,Corporate,D,55504431266071228333573,02/10/2021,GLOUCESTER CITY COUNCIL
Gloucester City Council,23UE,"	Cemeteries",CC004,Grounds Maintenance,1100,24/09/2021,23/09/2021,BROCKWORTH GARDEN CENT,GLOUCESTER,,GL3 4PU,REDACTED,556*********0923,5261,"NURSERIES, LAWN AND GARDEN SUPPLY STORES",99.96,Pound Sterling (826),1.000000000,99.96,Corporate,D,55504431266071228333565,02/10/2021,GLOUCESTER CITY COUNCIL
Gloucester City Council,23UE,"	Cemeteries",CC004,Grounds Maintenance,1100,24/09/2021,23/09/2021,BROCKWORTH GARDEN CENT,GLOUCESTER,,GL3 4PU,REDACTED,556*********0923,5261,"NURSERIES, LAWN AND GARDEN SUPPLY STORES",99.96,Pound Sterling (826),1.000000000,99.96,Corporate,D,55504431266071228333557,02/10/2021,GLOUCESTER CITY COUNCIL
Gloucester City Council,23UE,"	The Arbor",CC001,Catering Provisions,3103,01/10/2021,30/09/2021,BOOKER LIMITED GLOUCES,GLOUCESTER,GBR,GL4 3RT,REDACTED,556*********0923,5811,CATERERS,200,Pound Sterling (826),1.000000000,200,Corporate,D,55184221273522744109643,02/10/2021,GLOUCESTER CITY COUNCIL
Gloucester City Council,23UE,"	The Arbor",CC001,Catering Provisions,3103,01/10/2021,30/09/2021,BOOKER LIMITED GLOUCES,GLOUCESTER,GBR,GL4 3RT,REDACTED,556*********0923,5811,CATERERS,47.13,Pound Sterling (826),1.000000000,47.13,Corporate,D,55184221273522744109668,02/10/2021,GLOUCESTER CITY COUNCIL
Gloucester City Council,23UE,"	Business Transformation",BI006,"	General Supplies/Materials",3025,09/09/2021,08/09/2021,AMZNMktplace,amazon.co.uk,GBR,EC2A 2FA,REDACTED,556*********4450,5999,MISCELLANEOUS AND RETAIL STORES,8.75,Pound Sterling (826),1.000000000,8.75,Corporate,D,52692011251200017223978,02/10/2021,GLOUCESTER CITY COUNCIL
Gloucester City Council,23UE,"	Business Transformation",BI006,"	General Supplies/Materials",3025,17/09/2021,16/09/2021,Amazon.co.uk*OB6689HX5,AMAZON.CO.UK,GBR,EC2A 2FA,REDACTED,556*********4450,5969,ALL OTHER DIRECT MARKETERS,53.49,Pound Sterling (826),1.000000000,53.49,Corporate,D,52692011259200328306852,02/10/2021,GLOUCESTER CITY COUNCIL
Gloucester City Council,23UE,Planning Policy,PL004,"ICT Software, Licences & Support",3521,20/09/2021,19/09/2021,ZOOM.US 888-799-9666,SAN JOSE,CA,95113,REDACTED,556*********4450,4814,"TELECOMMUNICATION SERV.INCLUD. LOCAL/L.DIST. CALLS,CR CARDCALLS",11.99,Pound Sterling (826),1.000000000,11.99,Corporate,D,82711161262000008353725,02/10/2021,GLOUCESTER CITY COUNCIL
Gloucester City Council,23UE,Museum of Gloucester,MU002,Grant Payments,3901,08/09/2021,07/09/2021,SurveyMonkey,0035315920752,IRL,4,REDACTED,556*********9780,7372,COMPUTER AND DATA PROCESSING SERVICES,384,Pound Sterling (826),1.000000000,384,Corporate,D,15265671250004728875852,02/10/2021,GLOUCESTER CITY COUNCIL
Gloucester City Council,23UE,Blackfriars,GH010,Catering Provisions,3103,27/09/2021,25/09/2021,TESCO STORE 2581,GLOUCESTER,GBR,GL1 2SR,REDACTED,556*********9780,5411,"GROCERY STORES, SUPERMARKETS",19.44,Pound Sterling (826),1.000000000,19.44,Corporate,D,05130861269910000807944,02/10/2021,GLOUCESTER CITY COUNCIL
Gloucester City Council,23UE,Blackfriars,GH010,Catering Provisions,3103,27/09/2021,26/09/2021,TESCO STORES 6819,GLOUCESTER,GBR,GL1 1TP,REDACTED,556*********9780,5411,"GROCERY STORES, SUPERMARKETS",1.7,Pound Sterling (826),1.000000000,1.7,Corporate,D,05130861270910000566190,02/10/2021,GLOUCESTER CITY COUNCIL
Gloucester City Council,23UE,"	Gloucester Guildhall",GH001,Public Transport - Staff,2402,30/09/2021,29/09/2021,Trainline.COM,London,GBR,EC1N 2TD,REDACTED,556*********9780,4112,PASSENGER RAILWAYS,115.13,Pound Sterling (826),1.000000000,115.13,Corporate,D,85130081272138170893336,02/10/2021,GLOUCESTER CITY COUNCIL
Gloucester City Council,23UE,Blackfriars,GH010,Catering Provisions,3103,30/09/2021,29/09/2021,B&M 298 - GLOUCESTER,GLOUCESTER,GBR,GL1 2DH,REDACTED,556*********9780,5399,MISCELLANEOUS GENERAL MERCHANDISE STORES,9,Pound Sterling (826),1.000000000,9,Corporate,D,05272471273910031218251,02/10/2021,GLOUCESTER CITY COUNCIL
Gloucester City Council,23UE,Blackfriars,GH010,"	Professional Advice/Consultants Fees",3952,01/10/2021,30/09/2021,AMZNMktplace,amazon.co.uk,GBR,EC2A 2FA,REDACTED,556*********9780,5999,MISCELLANEOUS AND RETAIL STORES,9.99,Pound Sterling (826),1.000000000,9.99,Corporate,D,52692011273200217849493,02/10/2021,GLOUCESTER CITY COUNCIL
Gloucester City Council,23UE,Housing Services,HS001,Temporary Accommodation,1304,03/09/2021,02/09/2021,TRAVELODGE GB0000,THAME,,OX9 3AT,REDACTED,556*********3914,3615,TRAVELODGE,553.93,Pound Sterling (826),1.000000000,553.93,Corporate,D,55504431245298191839148,02/10/2021,GLOUCESTER CITY COUNCIL
Gloucester City Council,23UE,Housing Services,HS001,Temporary Accommodation,1304,03/09/2021,02/09/2021,TRAVELODGE GB0000,THAME,,OX9 3AT,REDACTED,556*********3914,3615,TRAVELODGE,216.57,Pound Sterling (826),1.000000000,216.57,Corporate,D,55504431245298191777389,02/10/2021,GLOUCESTER CITY COUNCIL
Gloucester City Council,23UE,Housing Services,HS001,Temporary Accommodation,1304,03/09/2021,02/09/2021,TRAVELODGE GB0000,THAME,,OX9 3AT,REDACTED,556*********3914,3615,TRAVELODGE,440.93,Pound Sterling (826),1.000000000,440.93,Corporate,D,55504431245298191733606,02/10/2021,GLOUCESTER CITY COUNCIL
Gloucester City Council,23UE,Housing Services,HS001,Temporary Accommodation,1304,03/09/2021,02/09/2021,WWW.ROOMSBOOKED.COM,INTERNET,GBR,GL50 4BA,REDACTED,556*********3914,7011,"LODGING, HOTELS, MOTELS, RESORTS",74,Pound Sterling (826),1.000000000,74,Corporate,D,05272461246910004075303,02/10/2021,GLOUCESTER CITY COUNCIL
Gloucester City Council,23UE,Housing Services,HS001,Temporary Accommodation,1304,06/09/2021,03/09/2021,WWW.ROOMSBOOKED.COM,INTERNET,GBR,GL50 4BA,REDACTED,556*********3914,7011,"LODGING, HOTELS, MOTELS, RESORTS",486,Pound Sterling (826),1.000000000,486,Corporate,D,05272461247910004098775,02/10/2021,GLOUCESTER CITY COUNCIL
Gloucester City Council,23UE,Housing Services,HS001,Temporary Accommodation,1304,06/09/2021,03/09/2021,WWW.ROOMSBOOKED.COM,INTERNET,GBR,GL50 4BA,REDACTED,556*********3914,7011,"LODGING, HOTELS, MOTELS, RESORTS",348,Pound Sterling (826),1.000000000,348,Corporate,D,05272461247910004111537,02/10/2021,GLOUCESTER CITY COUNCIL
Gloucester City Council,23UE,Housing Services,HS001,Temporary Accommodation,1304,07/09/2021,06/09/2021,TRAVELODGE GB0000,THAME,,OX9 3AT,REDACTED,556*********3914,3615,TRAVELODGE,100.98,Pound Sterling (826),1.000000000,100.98,Corporate,D,55504431249298121026036,02/10/2021,GLOUCESTER CITY COUNCIL
Gloucester City Council,23UE,Housing Services,HS001,Temporary Accommodation,1304,07/09/2021,06/09/2021,WWW.ROOMSBOOKED.COM,INTERNET,GBR,GL50 4BA,REDACTED,556*********3914,7011,"LODGING, HOTELS, MOTELS, RESORTS",64,Pound Sterling (826),1.000000000,64,Corporate,D,05272461250910004067246,02/10/2021,GLOUCESTER CITY COUNCIL
Gloucester City Council,23UE,Housing Services,HS001,Temporary Accommodation,1304,08/09/2021,07/09/2021,TRAVELODGE GB0000,THAME,,OX9 3AT,REDACTED,556*********3914,3615,TRAVELODGE,478.95,Pound Sterling (826),1.000000000,478.95,Corporate,D,55504431250298128455176,02/10/2021,GLOUCESTER CITY COUNCIL
Gloucester City Council,23UE,Housing Services,HS001,Temporary Accommodation,1304,08/09/2021,07/09/2021,TRAVELODGE GB0000,THAME,,OX9 3AT,REDACTED,556*********3914,3615,TRAVELODGE,89.99,Pound Sterling (826),1.000000000,89.99,Corporate,D,55504431250298128453015,02/10/2021,GLOUCESTER CITY COUNCIL
Gloucester City Council,23UE,Housing Services,HS001,Temporary Accommodation,1304,08/09/2021,07/09/2021,TRAVELODGE GB0000,THAME,,OX9 3AT,REDACTED,556*********3914,3615,TRAVELODGE,100.98,Pound Sterling (826),1.000000000,100.98,Corporate,D,55504431250298128399150,02/10/2021,GLOUCESTER CITY COUNCIL
Gloucester City Council,23UE,Housing Services,HS001,Temporary Accommodation,1304,08/09/2021,07/09/2021,TRAVELODGE GB0000,THAME,,OX9 3AT,REDACTED,556*********3914,3615,TRAVELODGE,224.97,Pound Sterling (826),1.000000000,224.97,Corporate,D,55504431250298128398152,02/10/2021,GLOUCESTER CITY COUNCIL
Gloucester City Council,23UE,Housing Services,HS001,Temporary Accommodation,1304,08/09/2021,07/09/2021,TRAVELODGE GB0000,THAME,,OX9 3AT,REDACTED,556*********3914,3615,TRAVELODGE,224.97,Pound Sterling (826),1.000000000,224.97,Corporate,D,55504431250298128396289,02/10/2021,GLOUCESTER CITY COUNCIL
Gloucester City Council,23UE,Housing Services,HS001,Temporary Accommodation,1304,09/09/2021,08/09/2021,TRAVELODGE GB0000,THAME,,OX9 3AT,REDACTED,556*********3914,3615,TRAVELODGE,486.93,Pound Sterling (826),1.000000000,486.93,Corporate,D,55504431251298135549259,02/10/2021,GLOUCESTER CITY COUNCIL
Gloucester City Council,23UE,Housing Services,HS001,Temporary Accommodation,1304,09/09/2021,08/09/2021,HIE GLOUCESTER SOUTH,GLOUCESTER,GBR,GL2 2AB,REDACTED,556*********3914,3501,HOLIDAY INNS,129.99,Pound Sterling (826),1.000000000,129.99,Corporate,D,55184221251552520108580,02/10/2021,GLOUCESTER CITY COUNCIL
Gloucester City Council,23UE,Housing Services,HS001,Temporary Accommodation,1304,13/09/2021,10/09/2021,TRAVELODGE GB0000,THAME,,OX9 3AT,REDACTED,556*********3914,3615,TRAVELODGE,261.96,Pound Sterling (826),1.000000000,261.96,Corporate,D,55504431253298150081228,02/10/2021,GLOUCESTER CITY COUNCIL
Gloucester City Council,23UE,Housing Services,HS001,Temporary Accommodation,1304,13/09/2021,10/09/2021,TRAVELODGE GB0000,THAME,,OX9 3AT,REDACTED,556*********3914,3615,TRAVELODGE,140.98,Pound Sterling (826),1.000000000,140.98,Corporate,D,55504431253298150100101,02/10/2021,GLOUCESTER CITY COUNCIL
Gloucester City Council,23UE,Housing Services,HS001,Temporary Accommodation,1304,13/09/2021,10/09/2021,IBIS GLOUCESTER,GLOUCESTER,GBR,GL43DG,REDACTED,556*********3914,3533,HOTEL IBIS,79,Pound Sterling (826),1.000000000,79,Corporate,D,55184221253562542287740,02/10/2021,GLOUCESTER CITY COUNCIL
Gloucester City Council,23UE,Housing Services,HS001,Temporary Accommodation,1304,13/09/2021,10/09/2021,TRAVELODGE GB0809,GLOUCESTER,,GL1 5SF,REDACTED,556*********3914,3615,TRAVELODGE,106,Pound Sterling (826),1.000000000,106,Corporate,D,55504431255110291651868,02/10/2021,GLOUCESTER CITY COUNCIL
Gloucester City Council,23UE,Housing Services,HS001,Temporary Accommodation,1304,14/09/2021,11/09/2021,TRAVELODGE GB0809,GLOUCESTER,,GL1 5SF,REDACTED,556*********3914,3615,TRAVELODGE,105,Pound Sterling (826),1.000000000,105,Corporate,D,55504431256110213461148,02/10/2021,GLOUCESTER CITY COUNCIL
Gloucester City Council,23UE,Housing Services,HS001,Temporary Accommodation,1304,14/09/2021,13/09/2021,IBIS GLOUCESTER,GLOUCESTER,GBR,GL43DG,REDACTED,556*********3914,3533,HOTEL IBIS,99,Pound Sterling (826),1.000000000,99,Corporate,D,55184221256542574959355,02/10/2021,GLOUCESTER CITY COUNCIL
Gloucester City Council,23UE,Housing Services,HS001,Temporary Accommodation,1304,15/09/2021,13/09/2021,HOLIDAY INN CHELTE,GLOUCESTER,,GL4 3RX,REDACTED,556*********3914,7011,"LODGING, HOTELS, MOTELS, RESORTS",533,Pound Sterling (826),1.000000000,533,Corporate,D,85481471257338726210822,02/10/2021,GLOUCESTER CITY COUNCIL
Gloucester City Council,23UE,Housing Services,HS001,Temporary Accommodation,1304,15/09/2021,13/09/2021,HOLIDAY INN CHELTE,GLOUCESTER,,GL4 3RX,REDACTED,556*********3914,7011,"LODGING, HOTELS, MOTELS, RESORTS",33,Pound Sterling (826),1.000000000,33,Corporate,D,85481471257338726210848,02/10/2021,GLOUCESTER CITY COUNCIL
Gloucester City Council,23UE,Housing Services,HS001,Temporary Accommodation,1304,15/09/2021,12/09/2021,TRAVELODGE GB0809,GLOUCESTER,,GL1 5SF,REDACTED,556*********3914,3615,TRAVELODGE,41,Pound Sterling (826),1.000000000,41,Corporate,D,55504431257110234551090,02/10/2021,GLOUCESTER CITY COUNCIL
Gloucester City Council,23UE,Housing Services,HS001,Temporary Accommodation,1304,15/09/2021,14/09/2021,IBIS GLOUCESTER,GLOUCESTER,GBR,GL43DG,REDACTED,556*********3914,3533,HOTEL IBIS,248,Pound Sterling (826),1.000000000,248,Corporate,D,55184221257542586564036,02/10/2021,GLOUCESTER CITY COUNCIL
Gloucester City Council,23UE,Housing Services,HS001,Temporary Accommodation,1304,15/09/2021,14/09/2021,IBIS GLOUCESTER,GLOUCESTER,GBR,GL43DG,REDACTED,556*********3914,3533,HOTEL IBIS,99,Pound Sterling (826),1.000000000,99,Corporate,D,55184221257542586564051,02/10/2021,GLOUCESTER CITY COUNCIL
Gloucester City Council,23UE,Housing Services,HS001,Temporary Accommodation,1304,15/09/2021,14/09/2021,IBIS GLOUCESTER,GLOUCESTER,GBR,GL43DG,REDACTED,556*********3914,3533,HOTEL IBIS,99,Pound Sterling (826),1.000000000,99,Corporate,D,55184221257542586564200,02/10/2021,GLOUCESTER CITY COUNCIL
Gloucester City Council,23UE,Housing Services,HS001,Temporary Accommodation,1304,16/09/2021,15/09/2021,TRAVELODGE GB0000,THAME,,OX9 3AT,REDACTED,556*********3914,3615,TRAVELODGE,81.49,Pound Sterling (826),1.000000000,81.49,Corporate,D,55504431258298185029056,02/10/2021,GLOUCESTER CITY COUNCIL
Gloucester City Council,23UE,Housing Services,HS001,Temporary Accommodation,1304,16/09/2021,13/09/2021,TRAVELODGE GB0809,GLOUCESTER,,GL1 5SF,REDACTED,556*********3914,3615,TRAVELODGE,77.49,Pound Sterling (826),1.000000000,77.49,Corporate,D,55504431258110256047935,02/10/2021,GLOUCESTER CITY COUNCIL
Gloucester City Council,23UE,Housing Services,HS001,Temporary Accommodation,1304,16/09/2021,15/09/2021,IBIS GLOUCESTER,GLOUCESTER,GBR,GL43DG,REDACTED,556*********3914,3533,HOTEL IBIS,109,Pound Sterling (826),1.000000000,109,Corporate,D,55184221258542598520330,02/10/2021,GLOUCESTER CITY COUNCIL
Gloucester City Council,23UE,Housing Services,HS001,Temporary Accommodation,1304,17/09/2021,14/09/2021,TRAVELODGE GB0821,CHELTENHAM,,GL51 6TA,REDACTED,556*********3914,3615,TRAVELODGE,176.48,Pound Sterling (826),1.000000000,176.48,Corporate,D,55504431259110279222811,02/10/2021,GLOUCESTER CITY COUNCIL
Gloucester City Council,23UE,Housing Services,HS001,Temporary Accommodation,1304,17/09/2021,16/09/2021,IBIS GLOUCESTER,GLOUCESTER,GBR,GL43DG,REDACTED,556*********3914,3533,HOTEL IBIS,75,Pound Sterling (826),1.000000000,75,Corporate,D,55184221259542608860634,02/10/2021,GLOUCESTER CITY COUNCIL
Gloucester City Council,23UE,Housing Services,HS001,Temporary Accommodation,1304,17/09/2021,16/09/2021,IBIS GLOUCESTER,GLOUCESTER,GBR,GL43DG,REDACTED,556*********3914,3533,HOTEL IBIS,75,Pound Sterling (826),1.000000000,75,Corporate,D,55184221259542608860659,02/10/2021,GLOUCESTER CITY COUNCIL
Gloucester City Council,23UE,Housing Services,HS001,Temporary Accommodation,1304,17/09/2021,16/09/2021,IBIS GLOUCESTER,GLOUCESTER,GBR,GL43DG,REDACTED,556*********3914,3533,HOTEL IBIS,75,Pound Sterling (826),1.000000000,75,Corporate,D,55184221259542608860691,02/10/2021,GLOUCESTER CITY COUNCIL
Gloucester City Council,23UE,Housing Services,HS001,Temporary Accommodation,1304,20/09/2021,17/09/2021,TRAVELODGE GB0000,THAME,,OX9 3AT,REDACTED,556*********3914,3615,TRAVELODGE,163.98,Pound Sterling (826),1.000000000,163.98,Corporate,D,55504431260298199713493,02/10/2021,GLOUCESTER CITY COUNCIL
Gloucester City Council,23UE,Housing Services,HS001,Temporary Accommodation,1304,20/09/2021,17/09/2021,TRAVELODGE GB0000,THAME,,OX9 3AT,REDACTED,556*********3914,3615,TRAVELODGE,74.99,Pound Sterling (826),1.000000000,74.99,Corporate,D,55504431260298199708790,02/10/2021,GLOUCESTER CITY COUNCIL
Gloucester City Council,23UE,Housing Services,HS001,Temporary Accommodation,1304,20/09/2021,15/09/2021,TRAVELODGE GB0809,GLOUCESTER,,GL1 5SF,REDACTED,556*********3914,3615,TRAVELODGE,172.98,Pound Sterling (826),1.000000000,172.98,Corporate,D,55504431260110204687481,02/10/2021,GLOUCESTER CITY COUNCIL
Gloucester City Council,23UE,Housing Services,HS001,Temporary Accommodation,1304,20/09/2021,17/09/2021,WWW.ROOMSBOOKED.COM,INTERNET,GBR,GL50 4BA,REDACTED,556*********3914,7011,"LODGING, HOTELS, MOTELS, RESORTS",423,Pound Sterling (826),1.000000000,423,Corporate,D,05272461261910004240402,02/10/2021,GLOUCESTER CITY COUNCIL
Gloucester City Council,23UE,Housing Services,HS001,Temporary Accommodation,1304,20/09/2021,17/09/2021,IBIS GLOUCESTER,GLOUCESTER,GBR,GL43DG,REDACTED,556*********3914,3533,HOTEL IBIS,258,Pound Sterling (826),1.000000000,258,Corporate,D,55184221260552617968580,02/10/2021,GLOUCESTER CITY COUNCIL
Gloucester City Council,23UE,Housing Services,HS001,Temporary Accommodation,1304,20/09/2021,19/09/2021,IBIS GLOUCESTER,GLOUCESTER,GBR,GL43DG,REDACTED,556*********3914,3533,HOTEL IBIS,792,Pound Sterling (826),1.000000000,792,Corporate,D,55184221262532636823246,02/10/2021,GLOUCESTER CITY COUNCIL
Gloucester City Council,23UE,Housing Services,HS001,Temporary Accommodation,1304,21/09/2021,20/09/2021,IBIS GLOUCESTER,GLOUCESTER,GBR,GL43DG,REDACTED,556*********3914,3533,HOTEL IBIS,307,Pound Sterling (826),1.000000000,307,Corporate,D,55184221263542645558682,02/10/2021,GLOUCESTER CITY COUNCIL
Gloucester City Council,23UE,Housing Services,HS001,Temporary Accommodation,1304,21/09/2021,20/09/2021,IBIS GLOUCESTER,GLOUCESTER,GBR,GL43DG,REDACTED,556*********3914,3533,HOTEL IBIS,655,Pound Sterling (826),1.000000000,655,Corporate,D,55184221263542645558690,02/10/2021,GLOUCESTER CITY COUNCIL
Gloucester City Council,23UE,Housing Services,HS001,Temporary Accommodation,1304,21/09/2021,20/09/2021,IBIS GLOUCESTER,GLOUCESTER,GBR,GL43DG,REDACTED,556*********3914,3533,HOTEL IBIS,655,Pound Sterling (826),1.000000000,655,Corporate,D,55184221263542645558740,02/10/2021,GLOUCESTER CITY COUNCIL
Gloucester City Council,23UE,Housing Services,HS001,Temporary Accommodation,1304,21/09/2021,20/09/2021,IBIS GLOUCESTER,GLOUCESTER,GBR,GL43DG,REDACTED,556*********3914,3533,HOTEL IBIS,194,Pound Sterling (826),1.000000000,194,Corporate,D,55184221263542645558799,02/10/2021,GLOUCESTER CITY COUNCIL
Gloucester City Council,23UE,Housing Services,HS001,Temporary Accommodation,1304,22/09/2021,21/09/2021,IBIS GLOUCESTER,GLOUCESTER,GBR,GL43DG,REDACTED,556*********3914,3533,HOTEL IBIS,139,Pound Sterling (826),1.000000000,139,Corporate,D,55184221264542657319808,02/10/2021,GLOUCESTER CITY COUNCIL
Gloucester City Council,23UE,Housing Services,HS001,Temporary Accommodation,1304,24/09/2021,23/09/2021,TRAVELODGE GB0000,THAME,,OX9 3AT,REDACTED,556*********3914,3615,TRAVELODGE,324.96,Pound Sterling (826),1.000000000,324.96,Corporate,D,55504431266298142718734,02/10/2021,GLOUCESTER CITY COUNCIL
Gloucester City Council,23UE,Housing Services,HS001,Temporary Accommodation,1304,24/09/2021,23/09/2021,TRAVELODGE GB0000,THAME,,OX9 3AT,REDACTED,556*********3914,3615,TRAVELODGE,78.99,Pound Sterling (826),1.000000000,78.99,Corporate,D,55504431266298142734517,02/10/2021,GLOUCESTER CITY COUNCIL
Gloucester City Council,23UE,Housing Services,HS001,Temporary Accommodation,1304,24/09/2021,23/09/2021,IBIS GLOUCESTER,GLOUCESTER,GBR,GL43DG,REDACTED,556*********3914,3533,HOTEL IBIS,392,Pound Sterling (826),1.000000000,392,Corporate,D,55184221266552674163814,02/10/2021,GLOUCESTER CITY COUNCIL
Gloucester City Council,23UE,Housing Services,HS001,Temporary Accommodation,1304,24/09/2021,23/09/2021,IBIS GLOUCESTER,GLOUCESTER,GBR,GL43DG,REDACTED,556*********3914,3533,HOTEL IBIS,89,Pound Sterling (826),1.000000000,89,Corporate,D,55184221266552674163954,02/10/2021,GLOUCESTER CITY COUNCIL
Gloucester City Council,23UE,Housing Services,HS001,Temporary Accommodation,1304,27/09/2021,24/09/2021,CITRUS HOTEL CHELTENHA,CHELTENHAM,GBR,GL50 1XZ,REDACTED,556*********3914,7011,"LODGING, HOTELS, MOTELS, RESORTS",547.2,Pound Sterling (826),1.000000000,547.2,Corporate,D,15122621268000414320201,02/10/2021,GLOUCESTER CITY COUNCIL
Gloucester City Council,23UE,Housing Services,HS001,Temporary Accommodation,1304,27/09/2021,24/09/2021,TRAVELODGE GB0000,THAME,,OX9 3AT,REDACTED,556*********3914,3615,TRAVELODGE,234.97,Pound Sterling (826),1.000000000,234.97,Corporate,D,55504431267298150235679,02/10/2021,GLOUCESTER CITY COUNCIL
Gloucester City Council,23UE,Housing Services,HS001,Temporary Accommodation,1304,27/09/2021,24/09/2021,IBIS GLOUCESTER,GLOUCESTER,GBR,GL43DG,REDACTED,556*********3914,3533,HOTEL IBIS,348,Pound Sterling (826),1.000000000,348,Corporate,D,55184221267562685178429,02/10/2021,GLOUCESTER CITY COUNCIL
Gloucester City Council,23UE,Housing Services,HS001,Temporary Accommodation,1304,27/09/2021,24/09/2021,IBIS GLOUCESTER,GLOUCESTER,GBR,GL43DG,REDACTED,556*********3914,3533,HOTEL IBIS,89,Pound Sterling (826),1.000000000,89,Corporate,D,55184221267562685178486,02/10/2021,GLOUCESTER CITY COUNCIL
Gloucester City Council,23UE,Housing Services,HS001,Temporary Accommodation,1304,27/09/2021,24/09/2021,HOLIDAY INN CHELTE,GLOUCESTER,,GL4 3RX,REDACTED,556*********3914,7011,"LODGING, HOTELS, MOTELS, RESORTS",443,Pound Sterling (826),1.000000000,443,Corporate,D,85481471268341750768365,02/10/2021,GLOUCESTER CITY COUNCIL
Gloucester City Council,23UE,Housing Services,HS001,Temporary Accommodation,1304,27/09/2021,26/09/2021,CITRUS HOTEL CHELTENHA,CHELTENHAM,GBR,GL50 1XZ,REDACTED,556*********3914,7011,"LODGING, HOTELS, MOTELS, RESORTS",547.2,Pound Sterling (826),1.000000000,547.2,Corporate,D,15122621270004623960035,02/10/2021,GLOUCESTER CITY COUNCIL
Gloucester City Council,23UE,Housing Services,HS001,Temporary Accommodation,1304,27/09/2021,26/09/2021,CITRUS HOTEL CHELTENHA,CHELTENHAM,GBR,GL50 1XZ,REDACTED,556*********3914,7011,"LODGING, HOTELS, MOTELS, RESORTS",-547.2,Pound Sterling (826),1.000000000,-547.2,Corporate,C,15122621270005049210012,02/10/2021,GLOUCESTER CITY COUNCIL
Gloucester City Council,23UE,Housing Services,HS001,Temporary Accommodation,1304,28/09/2021,27/09/2021,IBIS GLOUCESTER,GLOUCESTER,GBR,GL43DG,REDACTED,556*********3914,3533,HOTEL IBIS,515,Pound Sterling (826),1.000000000,515,Corporate,D,55184221270542716834385,02/10/2021,GLOUCESTER CITY COUNCIL
Gloucester City Council,23UE,Housing Services,HS001,Temporary Accommodation,1304,28/09/2021,27/09/2021,IBIS GLOUCESTER,GLOUCESTER,GBR,GL43DG,REDACTED,556*********3914,3533,HOTEL IBIS,515,Pound Sterling (826),1.000000000,515,Corporate,D,55184221270542716834617,02/10/2021,GLOUCESTER CITY COUNCIL
Gloucester City Council,23UE,Housing Services,HS001,Temporary Accommodation,1304,29/09/2021,27/09/2021,HOLIDAY INN CHELTE,GLOUCESTER,,GL4 3RX,REDACTED,556*********3914,7011,"LODGING, HOTELS, MOTELS, RESORTS",607.9,Pound Sterling (826),1.000000000,607.9,Corporate,D,85481471271342618156137,02/10/2021,GLOUCESTER CITY COUNCIL
Gloucester City Council,23UE,Housing Services,HS001,Temporary Accommodation,1304,29/09/2021,27/09/2021,HOLIDAY INN CHELTE,GLOUCESTER,,GL4 3RX,REDACTED,556*********3914,7011,"LODGING, HOTELS, MOTELS, RESORTS",62,Pound Sterling (826),1.000000000,62,Corporate,D,85481471271342618156699,02/10/2021,GLOUCESTER CITY COUNCIL
Gloucester City Council,23UE,Housing Services,HS001,Temporary Accommodation,1304,29/09/2021,28/09/2021,IBIS GLOUCESTER,GLOUCESTER,GBR,GL43DG,REDACTED,556*********3914,3533,HOTEL IBIS,348,Pound Sterling (826),1.000000000,348,Corporate,D,55184221271542729797842,02/10/2021,GLOUCESTER CITY COUNCIL
Gloucester City Council,23UE,Housing Services,HS001,Temporary Accommodation,1304,30/09/2021,29/09/2021,IBIS GLOUCESTER,GLOUCESTER,GBR,GL43DG,REDACTED,556*********3914,3533,HOTEL IBIS,505,Pound Sterling (826),1.000000000,505,Corporate,D,55184221272542730272602,02/10/2021,GLOUCESTER CITY COUNCIL
Gloucester City Council,23UE,Housing Services,HS001,Temporary Accommodation,1304,30/09/2021,29/09/2021,IBIS GLOUCESTER,GLOUCESTER,GBR,GL43DG,REDACTED,556*********3914,3533,HOTEL IBIS,85,Pound Sterling (826),1.000000000,85,Corporate,D,55184221272542730272685,02/10/2021,GLOUCESTER CITY COUNCIL
Gloucester City Council,23UE,Housing Services,HS001,Temporary Accommodation,1304,30/09/2021,29/09/2021,IBIS GLOUCESTER,GLOUCESTER,GBR,GL43DG,REDACTED,556*********3914,3533,HOTEL IBIS,950,Pound Sterling (826),1.000000000,950,Corporate,D,55184221272542730272990,02/10/2021,GLOUCESTER CITY COUNCIL
Gloucester City Council,23UE,Housing Services,HS001,Temporary Accommodation,1304,01/10/2021,30/09/2021,IBIS GLOUCESTER,GLOUCESTER,GBR,GL43DG,REDACTED,556*********3914,3533,HOTEL IBIS,501,Pound Sterling (826),1.000000000,501,Corporate,D,55184221273552744722285,02/10/2021,GLOUCESTER CITY COUNCIL
Gloucester City Council,23UE,Housing Services,HS001,Temporary Accommodation,1304,01/10/2021,30/09/2021,IBIS GLOUCESTER,GLOUCESTER,GBR,GL43DG,REDACTED,556*********3914,3533,HOTEL IBIS,501,Pound Sterling (826),1.000000000,501,Corporate,D,55184221273552744722533,02/10/2021,GLOUCESTER CITY COUNCIL
Gloucester City Council,23UE,Destination Marketing,TI001,Professional Membership & Subscriptions,3403,06/09/2021,04/09/2021,"SPROUT SOCIAL, INC",8668783231,IL,60603,REDACTED,556*********5716,5045,"COMPUTERS,COMPUTER PERIPHERAL EQUIPMENT, SOFTWARE",99,US Dollar (840),1.342008946,73.77,Corporate,D,55429501247719535039103,02/10/2021,GLOUCESTER CITY COUNCIL
Gloucester City Council,23UE,Destination Marketing,TI001,Advertising & Publicity,3404,07/09/2021,06/09/2021,FACEBK K5F9F5BJ72,fb.me/ads,IRL,2,REDACTED,556*********5716,7311,ADVERTISING SERVICES,10,Pound Sterling (826),1.000000000,10,Corporate,D,15265671249000110047443,02/10/2021,GLOUCESTER CITY COUNCIL
Gloucester City Council,23UE,Destination Marketing,TI001,Advertising & Publicity,3404,13/09/2021,10/09/2021,WWW.STUDIO.CO.UK,.,,BB5 4EE,REDACTED,556*********5716,5964,CATALOG MERCHANTS,50.36,Pound Sterling (826),1.000000000,50.36,Corporate,D,85481471254337856533600,02/10/2021,GLOUCESTER CITY COUNCIL
Gloucester City Council,23UE,Destination Marketing,TI001,Advertising & Publicity,3404,16/09/2021,15/09/2021,DIGIPRINT BATH,BATH,GBR,BA1 1QU,REDACTED,556*********5716,7338,QUICK-COPY AND REPRODUCTION SERVICES,7.2,Pound Sterling (826),1.000000000,7.2,Corporate,D,15122621259003066020039,02/10/2021,GLOUCESTER CITY COUNCIL
Gloucester City Council,23UE,Destination Marketing,TI001,Hospitality & Refreshments,3104,17/09/2021,15/09/2021,JURYS INN MANCHESTER,MANCHESTER,GBR,M1 5LE,REDACTED,556*********5716,7011,"LODGING, HOTELS, MOTELS, RESORTS",89,Pound Sterling (826),1.000000000,89,Corporate,D,55184221259552593958772,02/10/2021,GLOUCESTER CITY COUNCIL
Gloucester City Council,23UE,Destination Marketing,TI001,Advertising & Publicity,3404,20/09/2021,19/09/2021,FACEBK XUTDR7FDP2,fb.me/ads,IRL,2,REDACTED,556*********5716,7311,ADVERTISING SERVICES,192.07,Pound Sterling (826),1.000000000,192.07,Corporate,D,15265671261000529393621,02/10/2021,GLOUCESTER CITY COUNCIL
Gloucester City Council,23UE,Destination Marketing,TI001,Advertising & Publicity,3404,23/09/2021,22/09/2021,PADDLE.NET* SNAPWIDGET,"GREAT OAKLEY,",LND,NN18 8JG,REDACTED,556*********5716,5817,DIGITAL GOODS - APPLICATIONS (EXLDG GAME,5.5,Pound Sterling (826),1.000000000,5.5,Corporate,D,85383901266000001002845,02/10/2021,GLOUCESTER CITY COUNCIL
Gloucester City Council,23UE,Destination Marketing,TI001,Hospitality & Refreshments,3104,24/09/2021,22/09/2021,Hotel Ibis,BIRMINGHAM AI,,B26 3AW,REDACTED,556*********5716,3533,HOTEL IBIS,91,Pound Sterling (826),1.000000000,91,Corporate,D,85481471266341166209501,02/10/2021,GLOUCESTER CITY COUNCIL
Gloucester City Council,23UE,Destination Marketing,TI001,Advertising & Publicity,3404,30/09/2021,29/09/2021,GOOGLE ADS1175876893,Dublin,IRL,8QQ7+WG,REDACTED,556*********5716,7311,ADVERTISING SERVICES,56.58,Pound Sterling (826),1.000000000,56.58,Corporate,D,15265671272007110665850,02/10/2021,GLOUCESTER CITY COUNCIL
Gloucester City Council,23UE,Housing Services,HS001,Temporary Accommodation,1304,28/09/2021,27/09/2021,TRAVELODGE GB0000,THAME,,OX9 3AT,REDACTED,556*********8119,3615,TRAVELODGE,368.93,Pound Sterling (826),1.000000000,368.93,Corporate,D,55504431270298171736437,02/10/2021,GLOUCESTER CITY COUNCIL
